[Event "Mitropa Cup Open 2024"]
[Site "Apolda"]
[Date "2024.02.23"]
[Round "9.9"]
[White "Baidetskyi, Valentin"]
[Black "Plenca, Jadranko"]
[Result "1/2-1/2"]
[ECO "C45"]
[WhiteElo "2499"]
[BlackElo "2429"]
[Annotator "TA"]
[PlyCount "63"]
[EventDate "2024.02.15"]
[EventType "team-tourn"]
[EventCountry "GER"]
[SourceTitle "playchess.com"]
[Source "ChessBase"]
[SourceQuality "1"]
[WhiteTeam "Austria"]
[BlackTeam "Croatia"]
[WhiteTeamCountry "AUT"]
[BlackTeamCountry "CRO"]
[TimeControl "40/5400+30:1800+30"]

{[%evp 11,63,-10,0,11,4,0,12,0,8,0,0,-3,5,0,12,6,11,10,32,13,19,0,0,0,8,7,11,0,0,0,0,0,0,0,0,-33,0,0,0,0,0,0,0,0,0,0,0,0,0,0,0,0,0,-5]} 1. e4 {[%emt 0:00:34]} e5 {[%emt 0:00:05]} 2. Nf3 {[%emt 0:00:04]} Nc6 {[%emt 0:00:04]} 3. d4 {[%emt 0:00:12]} exd4 {[%emt 0:00:54]} 4. Nxd4 {[%emt 0:00:10]} Nf6 {[%emt 0:02:29]} 5. Nxc6 {[%emt 0:00:52]} bxc6 {[%emt 0:00:05]} 6. Nd2 {[%emt 0:00:15]} d5 {[%emt 0:02:18]} 7. exd5 {[%emt 0:00:13]} cxd5 {[%emt 0:00:14]} 8. Bb5+ {[%emt 0:00:10]} Bd7 {[%emt 0:00:35]} 9. Bxd7+ {[%emt 0:00:13]} Qxd7 {[%emt 0:00:41]} 10. O-O {[%emt 0:00:11]} Be7 {[%emt 0:01:07]} 11. b3 {[%emt 0:00:20]} O-O {[%emt 0:01:04]} 12. Bb2 {[%emt 0:00:09]} Rad8 {[%emt 0:05:51]} 13. Re1 {[%emt 0:10:06]} Rfe8 {[%emt 0:04:43]} 14. Qf3 {[%emt 0:17:06]} Qg4 {[%emt 0:18:31]} 15. Qd3 {[%emt 0:09:34]} (15. Re2 {simplifies} Qxf3 16. Nxf3 Ne4 17. Rae1) 15... Qg6 {[%emt 0:12:19]} 16. Nf3 {[%emt 0:12:44][%cal Bd2f3,Bf3d4,Bd4b3][%mdl 32]} (16. Qxg6 {simplifies} hxg6 17. Rad1 c6 18. Nf3) 16... Ne4 {[%emt 0:01:46]} 17. Re2 {[%emt 0:02:43]} Bc5 {[%emt 0:10:30]} 18. Rae1 {[%emt 0:05:41]} h6 {[%emt 0:06:39]} (18... Qb6 {simplifies} 19. Bd4 Bxd4 20. Nxd4 g6) 19. Nd4 {[%emt 0:10:08]} Bb6 {[%emt 0:12:09]} 20. b4 {[%emt 0:10:22]} c5 {[%emt 0:03:23]} 21. bxc5 {[%emt 0:00:05]} Bxc5 {[%emt 0:00:04]} 22. Nb3 {[%emt 0:02:28] [#] Nxc5 is the strong threat.} Bb6 {[%emt 0:03:17]} 23. a4 {[%emt 0:00:37]} a6 {[%emt 0:03:21]} 24. a5 {[%emt 0:02:12] The position is equal.} Ba7 {[%emt 0:00:05]} 25. Bd4 {[%emt 0:00:04]} Bxd4 {[%emt 0:00:49]} 26. Nxd4 {[%emt 0:00:07]} Qd6 {[%emt 0:02:16]} 27. f3 {[%emt 0:00:36]} Nf6 {[%emt 0:00:04]} 28. Rxe8+ {[%emt 0:00:17]} Rxe8 {[%emt 0:00:15]} 29. Rxe8+ {[%emt 0:00:09]} Nxe8 {[%emt 0:00:04]} 30. Qe3 {[%emt 0:02:43]} Nc7 {[%emt 0:01:32]} 31. Nb3 {[%emt 0:02:19] Wards off Qc5} Qc6 {[%emt 0:00:55]} 32. Qd3 {[%emt 0:00:54] A balanced but interesting game.   Weighted Error Value: White=0.04 (flawless) /Black=0.05 (flawless) .  Inaccurate:     	White=1     	Black=1      OK:         	White=11    	Black=11     Best:        	---       	Black=1} 1/2-1/2

[Event "Mitropa Cup Open 2024"]
[Site "Apolda"]
[Date "2024.02.23"]
[Round "9.10"]
[White "Ivekovic, Bozidar"]
[Black "Peyrer, Konstantin"]
[Result "0-1"]
[ECO "C24"]
[WhiteElo "2399"]
[BlackElo "2439"]
[Annotator "RC"]
[PlyCount "98"]
[EventDate "2024.02.15"]
[EventType "team-tourn"]
[EventCountry "GER"]
[SourceTitle "playchess.com"]
[Source "ChessBase"]
[SourceQuality "1"]
[WhiteTeam "Croatia"]
[BlackTeam "Austria"]
[WhiteTeamCountry "CRO"]
[BlackTeamCountry "AUT"]
[TimeControl "40/5400+30:1800+30"]

1. e4 {[%emt 0:00:04]} e5 {[%emt 0:00:05]} 2. Nf3 {[%emt 0:00:13]} Nc6 {[%emt 0:00:07]} 3. Bc4 {[%emt 0:00:02]} Nf6 {[%emt 0:00:21]} 4. d3 {[%emt 0:00:04]} d5 {[%emt 0:01:39]} 5. exd5 {[%emt 0:02:28]} Nxd5 {[%emt 0:00:32]} 6. O-O {[%emt 0:04:35]} Nb6 {[%emt 0:00:18]} 7. Bb5 {[%emt 0:10:15]} Bd6 {[%emt 0:00:19]} 8. Nxe5 {[%emt 0:07:42]} Bxe5 {[%emt 0:00:04]} 9. Bxc6+ {[%emt 0:00:03]} bxc6 {[%emt 0:00:07]} 10. Re1 {[%emt 0:00:40]} Qe7 {[%emt 0:00:11]} 11. d4 {[%emt 0:03:04]} Bxh2+ {[%emt 0:00:07]} 12. Kxh2 {[%emt 0:00:01]} Be6 {[%emt 0:00:07]} 13. b3 {[%emt 0:11:56]} O-O-O {[%emt 0:01:50]} 14. c4 {[%emt 0:00:02]} Qf6 {[%emt 0:08:36]} 15. Qf3 {[%emt 0:04:34]} Qxf3 {[%emt 0:00:32]} 16. gxf3 {[%emt 0:00:05]} Rxd4 {[%emt 0:00:04]} 17. Be3 {[%emt 0:01:14]} Rd3 {[%emt 0:04:25]} 18. Nd2 {[%emt 0:10:48]} Nd7 {[%emt 0:00:17]} 19. Ne4 {[%emt 0:00:46]} h6 {[%emt 0:00:07]} 20. Rad1 {[%emt 0:02:47]} Rxd1 {[%emt 0:00:16]} 21. Rxd1 {[%emt 0:00:04]} a6 {[%emt 0:00:38]} 22. Bd4 {[%emt 0:03:57]} Rg8 {[%emt 0:06:48]} 23. Rg1 {[%emt 0:03:28]} g6 {[%emt 0:01:27]} 24. Nf6 {[%emt 0:06:57]} Rd8 {[%emt 0:00:10]} 25. Nxd7 {[%emt 0:00:05]} Rxd7 {[%emt 0:00:04]} 26. Be3 {[%emt 0:00:05]} h5 {[%emt 0:00:17]} 27. Rc1 {[%emt 0:01:20]} h4 {[%emt 0:01:35]} 28. Bg5 {[%emt 0:01:06]} h3 {[%emt 0:00:06]} 29. Be3 {[%emt 0:00:07]} Rd3 {[%emt 0:00:30]} 30. Kg3 {[%emt 0:00:28]} a5 {[%emt 0:00:26]} 31. Kh2 {[%emt 0:01:23]} Kb7 {[%emt 0:03:55]} 32. Kg3 {[%emt 0:03:08]} Bf5 {[%emt 0:00:15]} 33. Kh2 {[%emt 0:02:12]} c5 {[%emt 0:01:45]} 34. Bxc5 {[%emt 0:00:24]} Rxf3 {[%emt 0:00:04]} 35. Be3 {[%emt 0:00:10]} g5 {[%emt 0:01:53]} 36. Rg1 {[%emt 0:18:49]} g4 {[%emt 0:00:07]} 37. Rg3 {[%emt 0:00:42]} Rxg3 {[%emt 0:00:05]} 38. Kxg3 {[%emt 0:00:01]} Bb1 {[%emt 0:00:13]} 39. a3 {[%emt 0:00:54]} Ba2 {[%emt 0:00:08]} 40. b4 {[%emt 0:03:04]} Bxc4 {[%emt 0:00:06]} 41. Bf4 {[%emt 0:30:13]} Be2 {[%emt 0:31:28]} 42. Kh4 {[%emt 0:01:30]} a4 43. Kg5 {[%emt 0:00:00]} Kc6 {[%emt 0:01:52]} 44. Kf5 {[%emt 0:00:00]} Kd5 {[%emt 0:00:00]} 45. Bxc7 {[%emt 0:00:00]} Kc4 {[%emt 0:00:00]} 46. Bd6 {[%emt 0:00:00]} Kb3 {[%emt 0:00:00]} 47. Kg5 {[%emt 0:00:00]} Kxa3 {[%emt 0:00:00]} 48. b5+ {[%emt 0:00:00]} Kb3 {[%emt 0:00:00]} 49. b6 {[%emt 0:00:00]} Bf3 {[%emt 0:00:00]} 0-1

[Event "Mitropa Cup Open 2024"]
[Site "Apolda"]
[Date "2024.02.23"]
[Round "9.11"]
[White "Morgunov, Marc"]
[Black "Tomulic, Teo"]
[Result "1-0"]
[ECO "B12"]
[WhiteElo "2368"]
[BlackElo "2386"]
[Annotator "TA"]
[PlyCount "75"]
[EventDate "2024.02.15"]
[EventType "team-tourn"]
[EventCountry "GER"]
[SourceTitle "playchess.com"]
[Source "ChessBase"]
[SourceQuality "1"]
[WhiteTeam "Austria"]
[BlackTeam "Croatia"]
[WhiteTeamCountry "AUT"]
[BlackTeamCountry "CRO"]
[TimeControl "40/5400+30:1800+30"]

{[%evp 11,75,20,35,18,48,33,57,4,0,0,2,0,5,5,8,0,8,0,8,0,8,2,22,-20,-16,-47,-41,-32,-17,-90,-85,-145,28,29,117,125,121,139,144,146,186,204,470,463,475,473,574,642,639,617,855,859,1989,545,552,405,405,411,411,411,411,411,411,405,543,542]} 1. e4 {[%emt 0:00:06]} c6 {[%emt 0:00:04]} 2. d4 {[%emt 0:00:37]} d5 {[%emt 0:00:08]} 3. e5 {[%emt 0:00:35]} Bf5 {[%emt 0:00:07]} 4. Nf3 {[%emt 0:00:14]} e6 {[%emt 0:00:47]} 5. Be2 {[%emt 0:00:20]} Ne7 {[%emt 0:06:45][%cal Bg8e7,Be7g6,Bg6f4,Bf4e2][%mdl 32]} 6. O-O {[%emt 0:03:35]} h6 {[%emt 0:00:43]} 7. a4 {[%emt 0:02:09]} Bh7 {[%emt 0:01:28][%cal Oc6c5]} 8. b4 {[%emt 0:19:16]} Nd7 {[%emt 0:01:13]} 9. Nbd2 {[%emt 0:00:35]} ({White should play} 9. a5 $14) 9... Ng6 $11 {[%emt 0:00:47]} 10. c3 {[%emt 0:11:49]} Nf4 {[%emt 0:00:21]} 11. Nb3 {[%emt 0:00:43]} Nxe2+ {[%emt 0:00:17]} 12. Qxe2 {[%emt 0:00:05]} Be7 {[%emt 0:01:01]} 13. Ba3 {[%emt 0:08:13]} Rc8 {[%emt 0:04:03]} 14. Nfd2 {[%emt 0:02:34]} O-O {[%emt 0:01:13]} 15. Rfc1 {[%emt 0:03:19]} Re8 {[%emt 0:22:27]} 16. a5 {[%emt 0:05:02]} b5 {[%emt 0:03:56]} 17. axb6 {[%emt 0:00:39]} axb6 {[%emt 0:00:44]} 18. b5 {[%emt 0:01:31]} c5 {[%emt 0:01:24]} 19. c4 {[%emt 0:01:22]} Ra8 {[%emt 0:03:52]} 20. cxd5 {[%emt 0:04:30]} (20. Bb2 $11) 20... exd5 $17 {[%emt 0:00:32]} 21. e6 {[%emt 0:00:39]} ({Better is} 21. Qf3) 21... Nf6 $2 {[%emt 0:02:56] [#]} (21... fxe6 $17 {White must now prevent ...Bf6.} 22. dxc5 Bxc5 23. Bxc5 Rxa1 24. Rxa1 bxc5 (24... Nxc5 25. Qe3 $17)) 22. dxc5 $11 {[%emt 0:02:52]} bxc5 {[%emt 0:01:24] White leaves nothing to chance now.} (22... Bg6 $11 {keeps the balance.}) 23. Bxc5 $16 {[%emt 0:02:13]} Rxa1 {[%emt 0:02:02]} 24. Rxa1 {[%emt 0:00:31]} Bxc5 {[%emt 0:00:07]} 25. Nxc5 {[%emt 0:00:05]} fxe6 {[%emt 0:00:06] [#]} 26. Ra6 {[%emt 0:00:53] Dodges Qd6} (26. Nxe6 $2 {loses.} Qd7 27. Nf3 Qxe6 $19 (27... Rxe6 $2 28. Qb2 $19)) 26... e5 $2 {[%emt 0:02:18]} (26... Ne4 {was called for.}) 27. b6 $18 {[%emt 0:07:13]} Nd7 {[%emt 0:05:46][%cal Bf6d7,Bd7b8,Bb8a6][%mdl 32]} 28. Qb5 {[%emt 0:00:35]} Nb8 {[%emt 0:04:08]} 29. Ra8 {[%emt 0:02:35] Threatens to win with Na6.} Bg6 {[%emt 0:01:55]} 30. Na6 {[%emt 0:03:45] Excellent horsemanship.} Qg5 {[%emt 0:03:17]} 31. Nf1 {[%emt 0:04:32]} (31. Rxb8 Rxb8 32. Nxb8 Qxd2 $11) 31... Nxa6 {[%emt 0:00:35]} 32. Rxe8+ {[%emt 0:00:55]} (32. Qxd5+ Kh7 33. Rxa6 Rd8 $14) (32. Qxa6 $142 Rxa8 33. Qxa8+ Kh7 34. h4 (34. Qxd5 Qg4 $18) 34... Qxh4 35. b7 (35. Qxd5 Qe4 $18)) 32... Bxe8 {[%emt 0:00:14]} 33. Qxe8+ {[%emt 0:00:03] KQN-KQN} Kh7 {[%emt 0:00:06]} 34. Qc8 {[%emt 0:00:05]} Nb4 {[%emt 0:00:30]} 35. b7 {[%emt 0:00:49]} Na6 {[%emt 0:00:07]} 36. b8=Q {[%emt 0:02:51]} Nxb8 {[%emt 0:00:06]} 37. Qxb8 {[%emt 0:00:04]} e4 {[%emt 0:00:06]} 38. Qd6 {[%emt 0:00:20] Weighted Error Value: White=0.50/Black=0.47.  Mistake:       	White=3     	Black=3      Inaccurate:     	White=2     	Black=2      OK:         	White=11    	Black=11     Best:        	White=2     	Black=1} 1-0

[Event "Mitropa Cup Open 2024"]
[Site "Apolda"]
[Date "2024.02.23"]
[Round "9.12"]
[White "Novosel, Lovro"]
[Black "Dotzer, Lukas"]
[Result "0-1"]
[ECO "D47"]
[WhiteElo "2373"]
[BlackElo "2335"]
[Annotator "TA"]
[PlyCount "78"]
[EventDate "2024.02.15"]
[EventType "team-tourn"]
[EventCountry "GER"]
[SourceTitle "playchess.com"]
[Source "ChessBase"]
[SourceQuality "1"]
[WhiteTeam "Croatia"]
[BlackTeam "Austria"]
[WhiteTeamCountry "CRO"]
[BlackTeamCountry "AUT"]
[TimeControl "40/5400+30:1800+30"]

{[%evp 17,78,0,8,0,-7,-13,-3,-3,-10,-12,17,17,26,22,16,18,11,0,0,0,0,0,17,0,0,0,0,0,0,0,0,0,-4,-52,-52,-50,-53,-50,-50,-51,-49,-84,-84,-85,-85,-85,-77,-88,-93,-107,-97,-154,-167,-157,-168,-186,-174,-414,-399,-963,-933,-974,-845]} 1. c4 {[%emt 0:00:06]} Nf6 {[%emt 0:00:04]} 2. Nc3 {[%emt 0:01:24]} e6 {[%emt 0:00:09]} 3. Nf3 {[%emt 0:01:29]} d5 {[%emt 0:00:28]} 4. d4 {[%emt 0:01:49]} c6 {[%emt 0:00:14]} 5. e3 {[%emt 0:01:09]} Nbd7 {[%emt 0:00:35]} 6. Be2 {[%emt 0:01:28]} dxc4 {[%emt 0:03:22]} 7. Bxc4 {[%emt 0:05:24]} b5 {[%emt 0:01:11]} 8. Be2 {[%emt 0:02:32]} Bb7 {[%emt 0:02:53]} 9. O-O {[%emt 0:00:08]} Be7 {[%emt 0:01:29]} 10. b3 {[%emt 0:05:33]} O-O {[%emt 0:07:14]} 11. Bb2 {[%emt 0:00:13]} a6 {[%emt 0:03:07]} 12. a4 {[%emt 0:06:53] Die Stellung ist ausgeglichen.} b4 {[%emt 0:04:29]} 13. Nb1 {[%emt 0:00:08]} Ne4 {[%emt 0:09:02]} 14. Nbd2 {[%emt 0:02:07]} Ndf6 {[%emt 0:04:28]} 15. Rc1 {[%emt 0:01:31]} Rc8 {[%emt 0:04:37]} 16. Nxe4 {[%emt 0:18:40]} Nxe4 {[%emt 0:00:06]} 17. Nd2 {[%emt 0:00:06]} Nxd2 {[%emt 0:06:06]} 18. Qxd2 {[%emt 0:00:03]} c5 {[%emt 0:01:26]} 19. Rfd1 {[%emt 0:07:20]} cxd4 {[%emt 0:10:18]} 20. Bxd4 {[%emt 0:01:11]} Qa5 {[%emt 0:08:24]} 21. Rxc8 {[%emt 0:21:24]} Rxc8 {[%emt 0:01:02]} 22. Rc1 {[%emt 0:00:11]} Rd8 $40 {[%emt 0:06:09][%mdl 128] ...e5 ist eine echte Drohung. Schwarz hat was vor.} 23. Qc2 {[%emt 0:04:28]} Bf6 {[%emt 0:12:00]} 24. Qc5 {[%emt 0:13:50]} Qxc5 {[%emt 0:00:27]} 25. Bxc5 {[%emt 0:00:04]} (25. Rxc5 $11 Bd5 (25... Bxd4 26. exd4 g6 27. Rc7 $14) 26. Bd1 (26. Bxa6 Bxd4 27. exd4 Bxb3 $11)) 25... Rc8 $1 $15 {[%emt 0:03:45]} 26. Rc4 {[%emt 0:01:14]} Bd5 {[%emt 0:02:18]} 27. Bxb4 {[%emt 0:02:24]} ({Nicht} 27. Rxb4 $2 Bc3 28. Rb6 Ba5 $19) 27... Bxc4 {[%emt 0:00:29]} 28. Bxc4 {[%emt 0:00:01][%mdl 4096] Endspiel. KRB-KB} Rb8 {[%emt 0:05:56]} 29. Bc5 {[%emt 0:00:57]} a5 {[%emt 0:01:08]} 30. Kf1 {[%emt 0:00:07]} Bc3 {[%emt 0:00:40]} 31. Ke2 {[%emt 0:01:17]} Rd8 {[%emt 0:00:53]} 32. Bd3 {[%emt 0:00:47]} f5 {[%emt 0:01:06]} 33. h3 {[%emt 0:00:20]} Kf7 {[%emt 0:00:21]} 34. g4 {[%emt 0:00:09] [#]} ({Günstiger ist} 34. Ba3) 34... fxg4 $1 $17 {[%emt 0:00:44]} 35. hxg4 {[%emt 0:00:01][%cal Of2f4] [#]} g6 $1 {[%emt 0:00:18]} 36. f4 {[%emt 0:01:00]} h5 {[%emt 0:00:35]} 37. g5 {[%emt 0:00:24]} (37. gxh5 gxh5 38. Bc4) 37... h4 $19 {[%emt 0:00:36][%cal Od8d3] Und jetzt ...Rxd3! wäre schön.} 38. e4 $2 {[%emt 0:01:02]} (38. Be4) 38... Bd4 {[%emt 0:00:36]} 39. Bxd4 {[%emt 0:00:31]} Rxd4 {[%emt 0:00:06] Gewichteter Fehlerwert: Weiß=0.33/Schwarz=0.02 (makellos) .  Fehler:       	Weiß=4     	---        Ungenau:       	Weiß=1     	Schwarz=1     OK:         	Weiß=11    	Schwarz=14    Bester:       	Weiß=2     	Schwarz=3     Stark:        	---       	Schwarz=3} 0-1

[Event "Mitropa Cup Open 2024"]
[Site "Apolda"]
[Date "2024.02.23"]
[Round "9.13"]
[White "Georgiadis, Nico"]
[Black "Sahidi, Samir"]
[Result "1/2-1/2"]
[ECO "B90"]
[WhiteElo "2547"]
[BlackElo "2478"]
[Annotator "TA"]
[PlyCount "109"]
[EventDate "2024.02.15"]
[EventType "team-tourn"]
[EventCountry "GER"]
[SourceTitle "playchess.com"]
[Source "ChessBase"]
[SourceQuality "1"]
[WhiteTeam "Switzerland"]
[BlackTeam "Slovakia"]
[WhiteTeamCountry "SUI"]
[BlackTeamCountry "SVK"]
[TimeControl "40/5400+30:1800+30"]

{[%evp 12,109,13,20,27,10,35,31,28,14,20,0,0,0,0,0,8,6,33,8,32,39,34,37,37,17,110,31,17,28,26,28,79,75,83,66,57,31,40,22,19,13,37,5,5,5,5,5,5,5,16,12,22,34,23,16,28,27,16,49,56,63,432,49,54,44,75,67,88,86,97,58,75,58,85,53,52,67,120,124,116,54,52,48,104,0,0,0,0,0,0,0,0,0,0,0,0,0,0,0]} 1. e4 {[%emt 0:00:04]} c5 {[%emt 0:00:09]} 2. Nf3 {[%emt 0:00:06]} d6 {[%emt 0:00:08]} 3. d4 {[%emt 0:00:07]} cxd4 {[%emt 0:00:06]} 4. Nxd4 {[%emt 0:00:07]} Nf6 {[%emt 0:00:06]} 5. Nc3 {[%emt 0:00:07]} a6 {[%emt 0:00:04]} 6. h3 {[%emt 0:00:08]} e5 {[%emt 0:00:18]} 7. Nde2 {[%emt 0:00:43]} h5 {[%emt 0:03:07]} 8. g3 {[%emt 0:00:24]} Be7 {[%emt 0:03:44]} 9. Bg2 {[%emt 0:01:05]} Be6 {[%emt 0:04:29] White is slightly better.} 10. Be3 {[%emt 0:06:29]} Nbd7 {[%emt 0:02:58]} 11. O-O {[%emt 0:01:51]} b5 {[%emt 0:06:07][%cal Bb7b5,Bb5b4][%mdl 32]} 12. a4 {[%emt 0:02:56]} b4 {[%emt 0:04:40]} 13. Nd5 {[%emt 0:00:06]} Bxd5 {[%emt 0:10:12]} 14. exd5 {[%emt 0:00:06]} Qc7 {[%emt 0:02:35]} 15. Qd2 {[%emt 0:20:05][%cal Oc2c3]} O-O {[%emt 0:05:31]} 16. c3 {[%emt 0:26:10]} bxc3 {[%emt 0:02:00]} 17. Nxc3 {[%emt 0:00:14]} Nc5 {[%emt 0:07:05]} 18. Ra3 {[%emt 0:00:53] Prevents Nb3} Rab8 {[%emt 0:03:24]} (18... Rfb8 $11) 19. Qc2 {[%emt 0:04:47]} (19. b4 $1 $16 {[%cal Rb4c5]} Rxb4 20. Nb5 Rxb5 (20... Qa5 $2 21. Na7 $18) 21. axb5 axb5 22. Rfa1) 19... Rb7 {[%emt 0:04:20]} 20. Na2 {[%emt 0:08:34]} a5 {[%emt 0:04:21]} 21. Nc3 {[%emt 0:01:43]} Rc8 {[%emt 0:09:10]} (21... Na6 $11 {remains equal.}) 22. Nb5 $16 {[%emt 0:02:31]} Qd8 {[%emt 0:00:22]} 23. Rc3 {[%emt 0:00:38]} Nfd7 {[%emt 0:01:25]} 24. h4 {[%emt 0:03:53]} g6 {[%emt 0:02:06]} 25. b3 {[%emt 0:02:42]} f5 {[%emt 0:05:33]} 26. Rc1 {[%emt 0:07:11]} Bf8 {[%emt 0:05:34]} 27. Qd2 {[%emt 0:01:27]} Qf6 {[%emt 0:02:03]} 28. Bg5 {[%emt 0:03:30]} Qf7 {[%emt 0:00:42]} 29. Qd1 {[%emt 0:01:07]} Re8 {[%emt 0:02:14]} 30. Bf1 {[%emt 0:01:05]} Kh7 {[%emt 0:05:08]} 31. Be2 {[%emt 0:00:05]} Nf6 {[%emt 0:02:06] [#]} 32. Rxc5 $1 {[%emt 0:02:28]} dxc5 {[%emt 0:00:09]} 33. d6 {[%emt 0:00:22]} Ne4 {[%emt 0:01:48]} 34. Bc4 {[%emt 0:00:31] This pair of bishops is nice.} Qg7 {[%emt 0:01:50]} 35. Bd5 {[%emt 0:01:50] Chess con chili.} Nxg5 $1 {[%emt 0:01:51]} 36. Bxb7 {[%emt 0:01:10]} Ne6 {[%emt 0:00:33][%mdl 8192]} ({Better is} 36... Nh3+ $14 37. Kg2 Qxb7+ 38. Kxh3 Qc6) 37. Bc6 $2 {[%emt 0:00:33] Black is weak on the light squares} ({Only move:} 37. Qd5 $18) 37... Rd8 $14 {[%emt 0:00:05][%cal Of8d6]} 38. d7 {[%emt 0:00:59]} e4 {[%emt 0:00:43] [#]} 39. Qd5 $1 {[%emt 0:00:22]} Qf6 {[%emt 0:00:35]} 40. Rd1 $36 {[%emt 0:00:26][%mdl 2048] White has strong initiative.} Kg7 {[%emt 0:00:37]} 41. Qc4 {[%emt 0:09:27] Nd6 is the strong threat.} Kh7 {[%emt 0:05:53]} 42. Kg2 {[%emt 0:08:24] White has more active pieces.} Be7 {[%emt 0:00:33]} 43. Nc3 {[%emt 0:05:36]} Nd4 {[%emt 0:01:35]} 44. Bb5 {[%emt 0:00:04]} Bf8 {[%emt 0:05:50]} (44... Kh6 $14) 45. Nd5 $16 {[%emt 0:00:55]} Qe6 {[%emt 0:03:38]} 46. Rxd4 {[%emt 0:03:07]} (46. Nf4 $16 Qxc4 47. bxc4) 46... cxd4 $14 {[%emt 0:00:14]} 47. Qxd4 {[%emt 0:00:31]} Bg7 {[%emt 0:00:58] [#] Inhibits Nf6+.} (47... Bd6 $14) 48. Qd2 {[%emt 0:00:24]} ({White should play} 48. Qc4 $1 $16) 48... Qd6 $11 {[%emt 0:03:58] Prevents Nf4. The position is equal.} 49. Qxa5 {[%emt 0:02:47]} Qxd5 {[%emt 0:02:14]} 50. Qxd8 {[%emt 0:00:04] Bc4 would kill now. KQB-KQB} e3+ {[%emt 0:00:12]} 51. Kh2 {[%emt 0:01:13] Hoping for Bc4.} Qf3 {[%emt 0:01:17]} 52. Qe7 {[%emt 0:00:52]} Qxf2+ {[%emt 0:01:17]} 53. Kh1 {[%emt 0:02:10]} Qf3+ {[%emt 0:00:12]} 54. Kh2 {[%emt 0:00:05]} Qf2+ {[%emt 0:00:11]} 55. Kh1 {[%emt 0:00:03] Weighted Error Value: White=0.22 (precise) /Black=0.21 (precise) .  Loses game:     	---       	Black=1      Missed win:     	White=1     	---        Mistake:       	White=3     	Black=4      Inaccurate:     	White=4     	Black=3      OK:         	White=21    	Black=16     Best:        	White=2     	Black=6      Strong:       	White=1     	Black=1} 1/2-1/2